bitfinex/quotes_SOLUSD_20250508
["timestamp","ask_amount","ask_price","bid_price","bid_amount"]
[1746720103945,6.066,160.15,160.07,0.14216157]
[1746720104132,36.2722322,160.12,160.07,0.14216157]
[1746720104452,36.2722322,160.11,160.09,26.0]
[1746720104649,36.2722322,160.12,160.1,0.14216157]
[1746720104827,36.2722322,160.13,160.1,0.14216157]
[1746720105027,36.2722322,160.11,160.09,26.0]
[1746720105231,36.2722322,160.16,160.09,26.0]
[1746720105232,18.64964886,160.16,160.09,26.0]
[1746720105431,36.2722322,160.1,160.09,26.0]
[1746720105832,36.2722322,160.1,160.07,6.24726682]
[1746720106052,36.2722322,160.08,160.07,6.24726682]
[1746720107041,36.2722322,160.08,160.06,6.24753942]
[1746720107241,36.2722322,160.07,160.06,6.24753942]
[1746720107445,36.2722322,160.07,160.05,26.0]
[1746720107446,36.2722322,160.07,160.05,32.2479546]
[1746720107657,36.2722322,160.06,160.05,32.2479546]
[1746720107960,36.2722322,160.06,160.05,6.2479546]
[1746720108342,36.2722322,160.06,160.0,15.0]
[1746720108546,18.79181043,160.12,160.0,21.25]
[1746720108736,36.2722322,160.01,160.0,21.25]
[1746720109562,36.44693717,160.08,160.0,21.25]
[1746720109857,36.2722322,160.01,160.0,21.25]
[1746720110173,36.2722322,160.05,160.02,0.14216157]
[1746720110340,30.2,160.08,160.02,0.14216157]
[1746720110747,36.2722322,160.05,160.02,0.14216157]
[1746720110951,30.2,160.08,160.02,0.14216157]
[1746720111149,36.2722322,160.06,160.02,0.14216157]
[1746720111543,36.2722322,160.05,160.03,6.24882834]
[1746720111861,36.2722322,160.04,160.03,6.24882834]
[1746720112065,36.2722322,160.04,160.01,6.24925957]
[1746720112251,36.2722322,160.02,160.01,6.24925957]
[1746720112451,36.2722322,160.02,160.0,21.2499975]
[1746720112761,36.2722322,160.01,160.0,15.0]
[1746720113639,4.20297698,160.18,160.01,7.7042]
[1746720113859,10.0,160.4,160.26,0.14216157]
[1746720114058,36.2722322,160.27,160.25,3.25600435]
[1746720114241,72.5444644,160.26,160.25,3.25600435]
[1746720114443,30.22,160.31,160.25,3.25600435]
[1746720114738,36.2722322,160.26,160.25,3.25600435]
[1746720114942,30.22,160.31,160.25,3.25600435]
[1746720115142,36.2722322,160.28,160.25,3.25600435]
[1746720115455,30.22,160.31,160.25,3.25600435]
[1746720115655,30.22,160.31,160.26,6.23986022]
[1746720115836,36.2722322,160.3,160.26,6.23986022]
[1746720116267,30.22,160.31,160.27,26.14216157]
[1746720116462,30.22,160.31,160.3,26.14216157]
[1746720116766,234.02,160.37,160.31,26.14216157]
[1746720116974,6.23310509,160.44,160.31,26.14216157]
[1746720116975,31.98071752,160.76,160.37,29.13246942]
[1746720117262,41.65438988,160.82,160.65,10.0]
[1746720117443,38.5408626,160.82,160.68,18.64964886]
[1746720117641,38.5408626,160.82,160.7,101.01458578]
[1746720118063,38.5408626,160.82,160.7,75.01458578]
[1746720118377,33.37081688,160.82,160.71,26.14216157]
[1746720118546,36.88058348,160.79,160.71,26.14216157]
[1746720118749,6.21658585,160.86,160.72,50.0]
[1746720118950,36.88058348,160.82,160.72,50.0]
[1746720119145,10.0,160.85,160.73,0.14216157]
[1746720119361,36.88058348,160.8,160.73,0.14216157]
[1746720119562,16.21658585,160.86,160.72,26.0]
[1746720119563,36.88058348,160.78,160.72,26.0]
[1746720119773,36.88058348,160.76,160.7,26.0]
[1746720120269,36.88058348,160.75,160.68,0.14216157]
[1746720120444,18.64964886,160.81,160.66,0.14216157]
[1746720120445,18.64964886,160.77,160.66,0.14216157]
[1746720120652,18.64964886,160.77,160.66,26.0]
[1746720120653,36.88058348,160.7,160.66,26.0]
[1746720120863,36.88058348,160.71,160.66,26.0]
[1746720121076,36.88058348,160.71,160.64,50.0]
[1746720121285,36.88058348,160.69,160.6,50.0]
[1746720121446,36.88058348,160.69,160.58,50.0]
[1746720121447,36.88058348,160.65,160.58,50.0]
[1746720121778,36.88058348,160.59,160.53,50.0]
[1746720121944,36.88058348,160.58,160.53,50.0]
[1746720122255,36.88058348,160.56,160.51,50.0]
[1746720122580,36.88058348,160.57,160.49,50.0]
[1746720122757,36.88058348,160.56,160.47,50.0]
[1746720122964,36.88058348,160.56,160.45,50.0]
[1746720123176,285.60794337,160.64,160.47,50.0]
[1746720123477,285.60794337,160.64,160.51,50.0]
[1746720123652,36.88058348,160.56,160.49,50.0]
[1746720123862,36.88058348,160.54,160.49,50.0]
[1746720124157,6.22703779,160.59,160.5,0.14216157]
[1746720124353,36.88058348,160.54,160.49,50.0]
[1746720124578,6.22703779,160.59,160.49,50.0]
[1746720124579,36.88058348,160.55,160.49,50.0]
[1746720124792,43.10933542,160.55,160.49,50.0]
[1746720124979,15.56643868,160.61,160.49,50.0]
[1746720125157,36.88058348,160.51,160.44,50.0]
[1746720125471,36.88058348,160.48,160.42,50.0]
[1746720125666,36.88058348,160.49,160.42,50.0]
[1746720125877,30.16,160.54,160.42,50.0]
[1746720126072,36.88058348,160.47,160.4,50.0]
[1746720126262,36.88058348,160.45,160.4,50.0]
[1746720126461,36.88058348,160.45,160.33,6.48274235]
[1746720126462,36.88058348,160.43,160.36,50.0]
[1746720126663,18.64964886,160.51,160.38,50.0]
[1746720126664,30.14,160.46,160.38,50.0]
[1746720126862,6.23247117,160.45,160.38,50.0]
[1746720127854,43.11305465,160.45,160.39,0.14216157]
[1746720128167,43.11305465,160.45,160.38,50.0]
[1746720128573,6.23247117,160.45,160.38,50.0]
[1746720128778,30.14,160.46,160.36,50.0]
[1746720128779,36.88058348,160.43,160.36,50.0]
[1746720129003,36.88058348,160.4,160.34,50.0]
[1746720129289,36.88058348,160.38,160.32,50.0]
[1746720129789,36.88058348,160.36,160.29,50.0]
[1746720130180,36.88058348,160.35,160.29,50.0]
[1746720130497,36.88058348,160.33,160.26,50.0]
[1746720130698,43.11849752,160.31,160.24,50.0]
[1746720131083,36.88058348,160.3,160.24,50.0]
[1746720131293,43.11849752,160.31,160.24,50.0]
[1746720131495,43.11849752,160.31,160.25,0.14216157]
[1746720131886,36.88058348,160.27,160.2,50.0]
[1746720132201,36.88058348,160.23,160.18,50.0]
[1746720132376,36.88058348,160.23,160.16,50.0]
[1746720132577,6.24141805,160.22,160.16,50.0]
[1746720132778,36.88058348,160.21,160.13,50.0]
[1746720133003,36.88058348,160.19,160.13,50.0]
[1746720133377,36.88058348,160.21,160.13,50.0]
[1746720133580,43.12146179,160.24,160.16,0.14216157]
[1746720133781,43.12146179,160.24,160.15,50.0]
[1746720134095,43.12146179,160.24,160.18,0.14216157]
[1746720134281,6.24087831,160.24,160.18,0.14216157]
[1746720134482,263.38,160.26,160.21,0.14216157]
[1746720134483,269.62016049,160.26,160.21,0.14216157]
[1746720134704,263.38,160.26,160.21,0.14216157]
[1746720135585,263.38,160.26,160.22,50.0]
[1746720135773,36.0171359,160.33,160.24,50.0]
[1746720135978,36.88058348,160.3,160.25,0.14216157]
[1746720136189,36.0171359,160.33,160.25,0.14216157]
[1746720136380,36.88058348,160.31,160.25,0.14216157]
[1746720136594,43.11873883,160.31,160.25,0.14216157]
[1746720136983,43.11873883,160.31,160.23,18.64964886]
[1746720136984,36.88058348,160.27,160.23,0.14216157]
[1746720137509,36.88058348,160.24,160.18,50.0]
[1746720137682,36.88058348,160.21,160.18,50.0]
[1746720137886,36.88058348,160.21,160.16,50.0]
[1746720138305,36.88058348,160.23,160.17,0.14216157]
[1746720138504,36.88058348,160.22,160.17,0.14216157]
[1746720138687,43.12231736,160.22,160.16,50.0]
[1746720139009,36.88058348,160.2,160.14,50.0]
[1746720139184,36.88058348,160.19,160.14,50.0]
[1746720139387,36.88058348,160.16,160.1,50.0]
[1746720139691,36.88058348,160.12,160.08,50.0]
[1746720139893,36.88058348,160.11,160.05,50.0]
[1746720140092,36.88058348,160.1,160.05,50.0]
[1746720140408,36.88058348,160.1,160.03,50.0]
[1746720140608,18.64964886,160.15,160.03,50.0]
[1746720140816,6.24453603,160.14,160.03,50.0]
[1746720140994,36.88058348,160.11,160.04,18.64964886]
[1746720141331,29.8,160.16,160.1,0.14216157]
[1746720141332,36.04409369,160.16,160.1,0.14216157]
[1746720141507,36.88058348,160.14,160.08,0.14216157]
[1746720141811,36.04409369,160.16,160.05,18.64964886]
[1746720142116,36.04409369,160.16,160.04,50.0]
[1746720142412,36.88058348,160.13,160.06,50.0]
[1746720142590,36.88058348,160.12,160.04,50.0]
[1746720142793,6.24570607,160.11,160.04,50.0]
[1746720142993,6.24414611,160.15,160.09,50.0]
[1746720143211,6.24414611,160.15,160.1,0.14216157]
[1746720143518,29.8,160.16,160.1,18.79181043]
[1746720143690,29.8,160.16,160.13,0.14216157]
[1746720143887,72.92436946,160.16,160.11,0.14216157]
[1746720144114,36.88058348,160.14,160.08,50.0]
[1746720144301,72.92436946,160.16,160.09,18.64964886]
[1746720144609,29.8,160.16,160.13,18.64964886]
[1746720145198,72.92446552,160.16,160.11,0.14216157]
[1746720145399,36.88058348,160.15,160.09,0.14216157]
[1746720145713,36.88058348,160.13,160.06,50.0]
[1746720145912,51.65327264,160.16,160.06,56.24749341]
[1746720146099,36.88058348,160.13,160.06,50.0]
[1746720146296,36.88058348,160.12,160.06,50.0]
[1746720146688,36.88058348,160.12,160.07,0.14216157]
[1746720146912,6.24565041,160.12,160.07,0.14216157]
[1746720147102,43.12472959,160.15,160.07,18.79181043]
[1746720147303,29.8,160.16,160.13,0.14216157]
[1746720147590,36.88058348,160.14,160.07,18.64964886]
[1746720147796,36.88058348,160.13,160.06,50.0]
[1746720148015,36.88058348,160.12,160.06,50.0]
[1746720148194,36.88058348,160.13,160.07,0.14216157]
[1746720148390,36.88058348,160.13,160.06,50.0]
[1746720148595,36.88058348,160.09,160.04,50.0]
[1746720148920,36.88058348,160.09,160.03,18.64964886]
[1746720149414,36.88058348,160.08,160.03,18.64964886]
[1746720149810,36.88058348,160.11,160.04,0.14216157]
[1746720150120,6.24492599,160.13,160.06,50.14216157]
[1746720150518,29.8,160.16,160.09,18.64964886]
[1746720150702,29.8,160.16,160.12,50.14216157]
[1746720151029,6.24414611,160.15,160.08,0.14216157]
[1746720151518,36.88058348,160.14,160.08,0.14216157]
[1746720152501,36.88058348,160.1,160.03,50.0]
[1746720152705,36.88058348,160.1,160.0,30.62448135]
[1746720152706,36.88058348,160.12,160.05,50.0]
[1746720152901,21.85451139,160.15,160.06,18.64964886]
[1746720153218,36.88058348,160.1,160.07,0.14216157]
[1746720153394,36.88058348,160.11,160.07,0.14216157]
[1746720153595,36.88058348,160.14,160.07,68.79181043]
[1746720154117,6.24414611,160.15,160.07,68.79181043]
[1746720154714,36.88058348,160.13,160.07,0.14216157]
[1746720154907,36.88058348,160.1,160.03,68.64964886]
[1746720155113,36.88058348,160.08,160.0,65.0]
[1746720155436,36.88058348,160.05,160.0,15.0]
[1746720155724,36.88058348,160.01,160.0,15.0]
[1746720156017,36.88058348,160.03,160.0,15.0]
[1746720156210,36.88058348,160.01,160.0,15.0]
[1746720157005,43.13019287,160.01,160.0,15.0]
[1746720157402,61.9220033,160.01,160.0,15.0]
[1746720157601,0.14216157,160.0,159.85,56.25557047]
[1746720157904,36.88058348,159.93,159.86,30.0]
[1746720158105,66.70058348,159.95,159.87,50.0]
[1746720158315,29.82,159.95,159.87,50.0]
[1746720158633,36.88058348,159.92,159.86,48.64964886]
[1746720158819,36.88058348,159.87,159.86,30.0]
[1746720159128,43.13566573,159.87,159.86,30.0]
[1746720159327,58.77337136,159.87,159.77,50.0]
[1746720159527,36.88058348,159.83,159.77,50.0]
[1746720159704,36.88058348,159.82,159.76,1.5779]
[1746720159910,36.88058348,159.8,159.76,1.5779]
[1746720160136,29.84,159.86,159.78,50.0]
[1746720160428,29.84,159.86,159.83,50.0]
[1746720160605,29.84,159.86,159.85,0.14216157]
[1746720160804,36.88058348,159.9,159.85,0.14216157]
[1746720161124,43.13488331,159.89,159.84,0.14216157]
[1746720161323,36.88058348,159.92,159.84,18.79181043]
[1746720161731,36.88058348,159.89,159.81,68.64964886]
[1746720161906,36.88058348,159.88,159.82,26.0]
[1746720162303,21.88739462,159.91,159.83,68.64964886]
[1746720162524,43.1341841,159.91,159.84,0.14216157]
[1746720162736,6.25360062,159.91,159.87,0.14216157]
[1746720163240,6.25312656,159.92,159.87,30.14216157]
[1746720163532,6.25312656,159.92,159.87,0.14216157]
[1746720164519,43.13371004,159.92,159.87,0.14216157]
[1746720164721,6.25312656,159.92,159.87,0.14216157]
[1746720164918,29.84,159.93,159.91,26.0]
[1746720165120,6.25039064,159.99,159.92,0.14216157]
[1746720165416,36.88058348,159.93,159.86,50.0]
[1746720165612,36.88058348,159.95,159.9,0.14216157]
[1746720165827,21.87636726,159.99,159.9,0.14216157]
[1746720165828,36.88058348,159.96,159.9,0.14216157]
[1746720166035,6.25039064,159.99,159.92,0.14216157]
[1746720166235,6.25039064,159.99,159.92,44.79181043]
[1746720166411,6.24960939,160.01,159.97,26.0]
[1746720166607,43.13019287,160.01,159.96,0.14216157]
[1746720166923,36.88058348,160.0,159.95,0.14216157]
[1746720167122,6.24960939,160.01,159.95,18.79181043]
[1746720167328,36.88058348,160.0,159.94,26.0]
[1746720167653,58.75421636,160.01,159.93,50.0]
[1746720167834,6.24960939,160.01,159.94,18.79181043]
[1746720168021,6.24960939,160.01,159.9,1.5745]
[1746720168022,36.88058348,159.96,159.9,1.5745]
[1746720168338,36.88058348,159.98,159.91,68.64964886]
[1746720168644,36.88058348,159.98,159.92,0.14216157]
[1746720169032,36.88058348,159.97,159.92,0.14216157]
[1746720169236,6.25156289,159.96,159.92,0.14216157]
[1746720169424,36.88058348,159.95,159.9,27.5745]
[1746720169626,6.05156289,159.96,159.9,27.5745]
[1746720169843,42.93214637,159.96,159.9,1.5745]
[1746720170045,36.88058348,159.95,159.9,1.5745]
[1746720170447,42.93214637,159.96,159.9,1.5745]
[1746720170633,6.05156289,159.96,159.9,1.5745]
[1746720170952,42.93214637,159.96,159.9,1.5745]
[1746720172138,42.93214637,159.96,159.91,0.14216157]
[1746720172329,6.2512072,159.97,159.91,0.14216157]
[1746720172526,263.64,160.03,159.94,18.79181043]
[1746720173054,6.24921884,160.02,159.96,18.79181043]
[1746720173234,269.88891306,160.03,159.99,0.14216157]
[1746720173541,43.13019287,160.01,159.96,0.14216157]
[1746720173752,36.88058348,159.99,159.94,0.14216157]
[1746720174218,36.88058348,159.98,159.92,0.14216157]
[1746720174419,36.88058348,159.97,159.91,50.0]
[1746720174618,36.88058348,159.94,159.9,1.5745]
[1746720175530,6.25273557,159.93,159.9,1.5745]
[1746720175955,6.25273557,159.93,159.89,50.0]
[1746720176138,36.88058348,159.94,159.89,50.0]
[1746720176334,36.88058348,159.95,159.89,50.0]
[1746720176559,15.62822799,159.97,159.9,0.14216157]
[1746720176769,52.50881147,159.97,159.9,0.14216157]
[1746720177062,263.78216157,160.03,159.9,0.14216157]
[1746720177063,15.6255621,160.0,159.91,50.0]
[1746720177223,15.6255621,160.0,159.92,18.79181043]
[1746720177224,6.25039064,159.99,159.92,18.79181043]
[1746720177428,6.25039064,159.99,159.95,0.14216157]
[1746720177628,36.88058348,160.0,159.95,0.14216157]
[1746720178062,6.24921884,160.02,159.96,50.0]
[1746720178364,269.88892771,160.03,159.97,18.79181043]
[1746720178730,306.76951119,160.03,159.97,18.79181043]
[1746720179137,306.76951119,160.03,159.97,0.14216157]
[1746720179333,269.88892771,160.03,159.97,0.14216157]
[1746720179637,269.88892771,160.03,159.94,1.52]
[1746720179638,36.88058348,160.0,159.94,51.52]
[1746720179852,36.88058348,159.97,159.94,1.52]
[1746720180161,36.88058348,159.95,159.9,18.64964886]
[1746720180459,36.88058348,159.94,159.89,50.0]
[1746720180669,18.64964886,160.02,159.87,1.516]
[1746720180670,55.53023234,160.02,159.87,57.77100923]
[1746720180964,36.88058348,159.91,159.87,1.516]
[1746720181133,36.88058348,159.89,159.87,1.516]
[1746720181329,43.13527449,159.88,159.81,50.0]
[1746720181530,36.88058348,159.87,159.81,50.0]
[1746720181842,36.88058348,159.87,159.8,1.516]
[1746720181843,36.4944713,159.87,159.8,1.516]
[1746720182157,36.4944713,159.82,159.78,9.28069806]
[1746720182361,36.4944713,159.81,159.78,9.28069806]
[1746720182734,36.4944713,159.8,159.75,9.28069806]
[1746720182942,36.4944713,159.84,159.75,9.28069806]
[1746720183247,6.25938908,159.76,159.75,9.28069806]
[1746720183551,42.75386038,159.76,159.75,9.28069806]
[1746720183855,43.65150913,159.76,159.75,9.28069806]
[1746720184253,62.30115799,159.76,159.75,9.28069806]
[1746720184630,72.30115799,159.76,159.75,9.28069806]
[1746720184832,10.0,159.74,159.72,18.56139613]
[1746720185031,37.39212005,159.73,159.72,18.56139613]
[1746720185251,43.65268475,159.73,159.72,18.56139613]
[1746720185677,72.30233361,159.73,159.72,18.56139613]
[1746720185970,43.65268475,159.73,159.72,18.56139613]
[1746720187861,43.65268475,159.73,159.71,6.91837954]
[1746720188041,37.39212005,159.72,159.71,6.91837954]
[1746720189451,43.65307672,159.72,159.71,6.91837954]
[1746720189840,62.30272558,159.72,159.71,6.91837954]
[1746720190040,62.44488715,159.72,159.71,6.91837954]
[1746720190250,72.44488715,159.72,159.71,6.91837954]
[1746720190461,72.44488715,159.72,159.6,1.516]
[1746720190462,28.64964886,159.7,159.6,1.516]
[1746720190658,37.39212005,159.63,159.54,50.0]
[1746720190849,37.39212005,159.62,159.54,50.0]
[1746720191056,29.52,159.69,159.54,50.0]
[1746720191057,37.39212005,159.63,159.54,50.0]
[1746720191362,37.39212005,159.64,159.54,50.0]
[1746720191562,6.26448662,159.63,159.54,50.0]
[1746720191765,6.26448662,159.63,159.57,50.0]
[1746720192150,21.9191915,159.68,159.58,0.14216157]
[1746720192349,37.39212005,159.62,159.55,50.0]
[1746720192660,37.39212005,159.61,159.53,51.5268]
[1746720193048,66.53212005,159.62,159.53,51.5268]
[1746720193246,29.14,159.62,159.55,50.0]
[1746720193460,29.14,159.62,159.54,18.64964886]
[1746720193461,28.14,159.62,159.57,0.14216157]
[1746720193848,28.14,159.62,159.59,0.14216157]
[1746720194964,15.64992907,159.75,159.62,18.79181043]
[1746720195141,29.14,159.74,159.68,50.0]
[1746720195550,29.14,159.74,159.69,0.14216157]
[1746720196377,29.14,159.74,159.7,50.0]
[1746720196745,6.25938908,159.76,159.7,50.0]
[1746720196971,6.25938908,159.76,159.68,50.0]
[1746720197167,6.25938908,159.76,159.69,0.14216157]
[1746720197370,201.89653729,159.77,159.69,0.14216157]
[1746720197551,239.28865734,159.77,159.68,50.0]
[1746720197756,201.89653729,159.77,159.69,0.14216157]
[1746720198066,6.25867329,159.78,159.72,0.14216157]
[1746720198255,6.25867329,159.78,159.71,50.0]
[1746720198453,6.25867329,159.78,159.68,6.26240478]
[1746720198454,37.39212005,159.76,159.69,50.0]
[1746720198951,37.39212005,159.76,159.67,50.0]
[1746720199153,21.90518724,159.78,159.67,50.0]
[1746720199454,6.25867329,159.78,159.71,6.26134869]
[1746720199767,29.14,159.79,159.74,50.0]
[1746720199957,29.14,159.79,159.75,0.14216157]
[1746720200150,6.25701986,159.83,159.76,50.0]
[1746720200672,234.6,159.87,159.78,50.0]
[1746720201250,240.8551347,159.87,159.81,0.14216157]
[1746720201467,234.6,159.87,159.81,6.39938269]
[1746720201772,15.63241842,159.93,159.81,6.39938269]
[1746720201773,35.39156289,159.96,159.85,50.0]
[1746720201977,35.39156289,159.96,159.88,0.14216157]
[1746720202357,29.14,159.96,159.89,50.0]
[1746720202556,29.14,159.96,159.9,0.14216157]
[1746720202956,15.62348182,160.02,159.93,50.0]
[1746720203274,37.39212005,160.0,159.91,51.5961]
[1746720203461,6.24955608,160.02,159.95,50.0]
[1746720204454,37.39212005,160.0,159.92,50.14216157]
[1746720204647,37.39212005,160.0,159.92,50.0]
[1746720204852,37.39212005,159.99,159.92,50.0]
[1746720205790,6.24955608,160.02,159.94,50.0]
[1746720205995,35.38889857,160.03,159.95,0.14216157]
[1746720206157,250.17742838,160.08,159.98,50.0]
[1746720206363,36.42800743,160.04,159.98,50.0]
[1746720206664,21.86543387,160.07,159.94,50.0]
[1746720206665,36.42800743,160.0,159.94,50.0]
[1746720206988,21.86543387,160.07,159.96,50.0]
[1746720207162,36.42800743,160.05,159.98,50.0]
[1746720207363,6.24726682,160.07,159.99,0.14216157]
[1746720207567,6.24726682,160.07,160.0,50.0]
[1746720207764,6.24648635,160.09,160.0,56.24982072]
[1746720207976,36.42800743,160.07,160.0,56.24982072]
[1746720208170,36.42800743,160.08,160.01,0.14216157]
[1746720208370,42.67449378,160.09,160.02,50.0]
[1746720208771,36.42800743,160.06,160.0,50.0]
[1746720209273,21.86270222,160.09,160.0,50.0]
[1746720209274,6.24648635,160.09,160.01,50.14216157]
[1746720209598,36.42800743,160.11,160.04,0.14216157]
[1746720209904,36.42800743,160.06,160.01,1.3]
[1746720210393,36.42800743,160.06,159.99,50.0]
[1746720210601,36.42800743,160.02,159.97,50.0]
[1746720210893,18.79181043,160.07,159.92,50.0]
[1746720211099,36.42800743,159.97,159.91,58.1482]
[1746720211401,36.42800743,160.08,159.93,50.0]
[1746720211402,36.42800743,159.99,159.93,50.0]
[1746720211591,36.42800743,159.99,159.91,14.40162629]
[1746720211592,36.42800743,159.97,159.91,64.40162629]
[1746720211778,18.79181043,160.07,159.91,64.40162629]
[1746720211779,6.24921884,160.02,159.93,50.0]
[1746720211977,36.42800743,159.99,159.93,50.0]
[1746720212171,36.42800743,160.01,159.93,50.0]
[1746720212486,42.67605491,160.05,159.96,18.79181043]
[1746720212688,29.1,160.09,160.0,50.0]
[1746720212894,65.52800743,160.09,160.0,50.0]
[1746720213375,36.42800743,160.05,159.98,50.14216157]
[1746720213687,36.42800743,160.02,159.96,50.0]
[1746720213893,6.2480216,160.06,159.97,18.79181043]
[1746720214067,6.24609618,160.1,160.0,50.0]
[1746720214274,36.42800743,160.07,160.0,50.0]
[1746720214581,21.86133665,160.1,159.99,0.14216157]
[1746720214582,36.42800743,160.06,159.99,0.14216157]
[1746720214893,36.42800743,160.08,160.0,50.14216157]
[1746720215088,6.24531601,160.12,160.04,50.0]
[1746720215296,36.42800743,160.11,160.04,50.0]
[1746720215780,42.67376468,160.11,160.04,56.24824968]
[1746720216171,35.34526152,160.13,160.05,0.14216157]
[1746720216483,35.34502443,160.13,160.06,50.0]
[1746720216672,71.77303186,160.13,160.06,50.0]
[1746720216993,29.1,160.13,160.07,0.14216157]
[1746720217364,29.1,160.13,160.08,50.0]
[1746720217688,29.1,160.13,160.09,6.24648635]
[1746720217895,29.1,160.13,160.1,50.14216157]
[1746720218078,36.42800743,160.17,160.1,50.14216157]
[1746720218277,36.42800743,160.15,160.08,56.38898194]
[1746720218491,36.42800743,160.13,160.06,56.38975393]
[1746720218803,36.42800743,160.11,160.06,50.0]
[1746720218978,18.64964886,160.17,160.03,7.80275212]
[1746720219176,287.44550384,160.18,160.06,50.0]
[1746720219505,36.42800743,160.14,160.06,50.0]
[1746720219673,36.42800743,160.13,160.06,50.0]
[1746720219874,42.67332344,160.12,160.06,50.0]
[1746720220601,42.67332344,160.12,160.04,50.0]
[1746720220805,36.42800743,160.09,160.03,1.554]
[1746720221105,36.42800743,160.09,160.02,50.0]
[1746720221106,36.42800743,160.05,159.97,57.75456331]
[1746720221286,36.42800743,160.04,159.97,51.5035]
[1746720221475,36.42800743,160.08,159.97,1.5035]
[1746720221476,36.42800743,160.02,159.97,1.5035]
[1746720221673,36.42800743,160.08,159.97,1.5035]
[1746720221674,36.42800743,160.0,159.97,1.5035]
[1746720221887,42.67722627,160.02,159.97,1.5035]
[1746720222180,6.24921884,160.02,159.97,1.5035]
[1746720223072,21.70499216,160.09,159.98,0.14216157]
[1746720223271,36.42800743,160.07,159.99,50.0]
[1746720223582,36.42800743,160.03,159.97,51.5035]
[1746720223786,42.67722627,160.02,159.97,1.5035]
[1746720223978,36.42800743,160.01,159.97,1.5035]
[1746720224170,36.42800743,160.0,159.97,1.5035]
[1746720224376,36.42800743,159.99,159.93,50.0]
[1746720224612,36.42800743,160.0,159.93,50.0]
[1746720225280,36.43778616,159.99,159.93,50.0]
[1746720225483,36.43778616,160.0,159.95,36.43778616]
[1746720225789,6.25039064,159.99,159.95,36.43778616]
[1746720225987,6.25005248,160.0,159.95,36.43778616]
[1746720226184,28.7,160.04,159.95,36.43778616]
[1746720226185,36.43778616,160.01,159.96,36.43778616]
[1746720226386,28.7,160.04,159.99,36.43778616]
[1746720226585,28.7,160.04,160.0,36.43778616]
[1746720226804,15.61736835,160.08,160.0,36.43778616]
[1746720226805,6.24609618,160.1,160.03,36.43778616]
[1746720226979,36.43778616,160.07,160.0,50.0]
[1746720227178,36.43778616,160.05,160.0,36.43778616]
[1746720227491,6.24609618,160.1,160.0,36.43778616]
[1746720227875,36.43778616,160.06,160.01,36.43778616]
[1746720228077,6.24761125,160.07,160.02,36.43778616]
[1746720228401,36.43778616,160.04,159.96,50.0]
[1746720228603,36.43778616,159.99,159.93,50.0]
[1746720228903,36.43778616,159.97,159.9,1.5202]
[1746720229110,36.43778616,159.96,159.91,36.43778616]
[1746720229315,36.43778616,159.97,159.92,36.43778616]
[1746720229502,36.43778616,159.99,159.94,36.43778616]
[1746720229678,36.43778616,160.0,159.95,36.43778616]
[1746720229880,36.43778616,160.01,159.95,36.43778616]
[1746720230201,36.43778616,159.99,159.94,36.43778616]
[1746720230513,36.43778616,159.96,159.9,51.5202]
[1746720230805,36.43778616,159.95,159.9,44.21185336]
[1746720231179,36.43778616,159.97,159.91,36.43778616]
[1746720231399,6.24921884,160.02,159.93,36.43778616]
[1746720231599,36.43778616,159.96,159.9,7.7740672]
[1746720231791,36.43778616,159.97,159.92,36.43778616]
[1746720231994,21.87226595,160.02,159.93,36.43778616]
[1746720232196,6.24921884,160.02,159.94,36.43778616]
[1746720232392,36.43778616,159.98,159.93,36.43778616]
[1746720232607,36.43778616,159.96,159.9,1.5202]
[1746720232787,36.43778616,159.97,159.92,36.43778616]
[1746720232980,36.43778616,159.98,159.93,36.43778616]
[1746720233308,36.43778616,159.96,159.9,1.5202]
[1746720233476,36.43778616,159.94,159.88,50.0]
[1746720233679,36.43778616,160.0,159.84,36.43778616]
[1746720233680,36.43778616,159.92,159.86,50.0]
[1746720233913,36.43778616,160.0,159.86,50.0]
[1746720233914,36.43778616,160.0,159.88,36.43778616]
[1746720234082,36.43778616,159.93,159.88,36.43778616]
[1746720234282,36.43778616,159.92,159.87,42.6928236]
[1746720234599,36.43778616,159.9,159.84,6.25623096]
[1746720234798,36.43778616,159.89,159.84,36.43778616]
[1746720234989,28.7,159.95,159.82,70.22134886]